bitfinex/quotes_SOLUSD_20240705
["timestamp","ask_amount","ask_price","bid_price","bid_amount"]
[1720142678172,7.8452,127.47,127.41,21.6611]
[1720142678391,19.6072,127.51,127.41,21.6611]
[1720142678593,138.65,127.54,127.41,21.6611]
[1720142678594,8.10392104,127.53,127.41,21.6611]
[1720142678789,7.8431,127.5,127.44,7.8467]
[1720142678997,8.10392104,127.53,127.42,19.6199]
[1720142679373,8.10392104,127.53,127.45,19.6154]
[1720142679780,38.65,127.58,127.45,19.6154]
[1720142679978,7.84,127.55,127.48,7.8442]
[1720142680400,127.69694948,127.57,127.45,19.6154]
[1720142681291,7.8424,127.52,127.45,27.4612]
[1720142681472,7.8424,127.52,127.42,390.1]
[1720142681473,7.8446,127.48,127.42,390.1]
[1720142681674,19.6021,127.54,127.41,41.2813]
[1720142681891,7.8444,127.48,127.41,49.1293]
[1720142682073,7.848,127.42,127.41,21.6611]
[1720142682806,7.8467,127.45,127.41,15.3403]
[1720142683177,7.848,127.42,127.41,0.1]
[1720142683400,7.8467,127.45,127.41,0.1]
[1720142683707,8.1052178,127.47,127.41,0.1]
[1720142683889,7.847,127.44,127.41,0.1]
[1720142684081,8.1052178,127.47,127.41,0.1]
[1720142684284,7.8469,127.44,127.41,0.1]
[1720142684506,7.8456,127.46,127.41,0.1]
[1720142684680,7.8474,127.44,127.41,0.1]
[1720142684873,7.8461,127.46,127.41,0.1]
[1720142685077,8.1052178,127.47,127.41,0.1]
[1720142685297,38.65,127.51,127.42,19.6188]
[1720142685498,8.10408412,127.49,127.42,19.6188]
[1720142685677,8.10408412,127.49,127.44,19.6157]
[1720142685875,8.10408412,127.49,127.45,7.8458]
[1720142686205,119.6059,127.52,127.41,0.1]
[1720142686504,7.845,127.47,127.41,0.1]
[1720142686701,7.8449,127.48,127.41,7.9486]
[1720142686996,100.0,127.51,127.41,7.9486]
[1720142687310,7.8471,127.44,127.41,0.1]
[1720142687479,100.0,127.51,127.41,0.1]
[1720142687676,7.8462,127.46,127.41,0.1]
[1720142687902,7.8449,127.48,127.41,0.1]
[1720142688071,19.6091,127.5,127.41,0.1]
[1720142688270,100.0,127.53,127.41,19.7215]
[1720142688700,7.8437,127.49,127.42,7.8479]
[1720142688906,7.8419,127.52,127.43,19.6174]
[1720142689213,8.10273548,127.54,127.45,19.6144]
[1720142689383,7.843,127.51,127.45,19.6144]
[1720142689588,8.10273548,127.54,127.41,0.1]
[1720142689589,27.70483548,127.54,127.42,7.8475]
[1720142689809,7.8437,127.49,127.42,7.8479]
[1720142690014,8.10273548,127.54,127.41,0.1]
[1720142690305,7.8471,127.44,127.41,0.1]
[1720142691699,46.4942,127.49,127.41,7.9486]
[1720142691897,7.8445,127.48,127.41,19.7203]
[1720142692100,38.65,127.49,127.41,0.1]
[1720142692498,7.8432,127.5,127.43,7.8469]
[1720142692813,8.10273548,127.54,127.42,6.5232]
[1720142693110,108.10273548,127.54,127.42,6.5232]
[1720142693319,7.8449,127.48,127.42,6.5232]
[1720142693492,7.8438,127.49,127.42,14.3709]
[1720142694127,108.10273548,127.54,127.42,6.5232]
[1720142694327,7.8471,127.44,127.42,6.5232]
[1720142694627,7.8444,127.48,127.42,6.5232]
[1720142694795,7.8452,127.47,127.42,6.5232]
[1720142694997,7.8457,127.46,127.42,6.5232]
[1720142695395,7.8449,127.48,127.42,6.5232]
[1720142695896,7.8435,127.5,127.43,7.847]
[1720142696210,7.8438,127.49,127.42,14.3707]
[1720142696413,7.8443,127.48,127.42,6.5232]
[1720142696615,7.8437,127.49,127.42,14.371]
[1720142696909,8.1033539,127.51,127.43,54.3395]
[1720142697115,7.8427,127.51,127.44,7.8468]
[1720142697307,7.8449,127.48,127.43,15.1024]
[1720142697511,7.8437,127.49,127.43,15.1024]
[1720142697835,19.6071,127.51,127.43,15.1024]
[1720142698115,7.844,127.49,127.43,15.1024]
[1720142698496,7.844,127.49,127.43,22.9496]
[1720142698696,15.96620971,127.51,127.44,7.8467]
[1720142698992,7.8445,127.48,127.43,15.1024]
[1720142699196,7.8437,127.49,127.43,15.1024]
[1720142699396,7.8432,127.5,127.43,22.9497]
[1720142699621,8.12360971,127.51,127.43,15.1024]
[1720142699800,8.12360971,127.51,127.45,7.8457]
[1720142699801,7.8426,127.51,127.45,7.8457]
[1720142700002,7.842,127.52,127.45,27.4605]
[1720142700198,7.8443,127.49,127.43,15.1024]
[1720142700797,19.6025,127.54,127.43,15.1024]
[1720142701007,7.8434,127.5,127.44,7.8463]
[1720142701229,7.8434,127.5,127.43,15.1024]
[1720142701531,8.10422015,127.55,127.43,15.1024]
[1720142701732,8.10422015,127.55,127.45,19.6151]
[1720142701900,7.8407,127.54,127.48,7.8441]
[1720142702099,8.10422015,127.55,127.49,7.8436]
[1720142702100,15.94422015,127.55,127.49,7.8436]
[1720142702328,15.94422015,127.55,127.43,405.2024]
[1720142702329,8.10422015,127.55,127.43,405.2024]
[1720142702628,19.5964,127.58,127.43,405.2024]
[1720142702829,19.6,127.56,127.43,405.2024]
[1720142703126,7.8419,127.52,127.46,7.8455]
[1720142703326,7.8413,127.53,127.44,19.6167]
[1720142703627,8.12929254,127.57,127.46,19.6128]
[1720142703808,7.8426,127.51,127.44,7.8463]
[1720142704119,7.841,127.54,127.46,19.6137]
[1720142704318,8.12929254,127.57,127.48,7.8442]
[1720142704506,7.8409,127.54,127.48,19.6098]
[1720142704930,8.12929254,127.57,127.48,19.6098]
[1720142705104,8.12929254,127.57,127.53,7.8408]
[1720142705302,7.8371,127.6,127.53,7.8412]
[1720142705503,158.2399,127.62,127.51,6.0413]
[1720142705808,8.13209604,127.61,127.51,6.0413]
[1720142706008,8.13209604,127.61,127.52,19.6043]
[1720142706708,7.8376,127.59,127.52,43.2472]
[1720142707421,7.8383,127.58,127.52,35.4054]
[1720142707625,7.8383,127.58,127.52,15.8011]
[1720142708001,100.0,127.59,127.47,22.2855]
[1720142708201,19.6045,127.53,127.47,22.2855]
[1720142708427,8.13209604,127.61,127.47,22.2855]
[1720142708601,7.842,127.52,127.47,22.2855]
[1720142708806,8.13209604,127.61,127.47,22.2855]
[1720142708807,108.13209604,127.61,127.47,41.8977]
[1720142709132,108.13209604,127.61,127.47,30.1302]
[1720142709133,7.8411,127.54,127.47,30.1302]
[1720142709438,39.1855,127.6,127.47,22.2855]
[1720142709439,100.0,127.57,127.47,22.2855]
[1720142709718,106.1758,127.57,127.43,19.6182]
[1720142710128,19.6001,127.55,127.43,19.6182]
[1720142710430,106.1758,127.57,127.46,19.6134]
[1720142710600,100.0,127.55,127.42,15.3774]
[1720142710800,7.842,127.52,127.45,7.846]
[1720142711021,7.8431,127.5,127.44,19.6158]
[1720142711410,38.65,127.54,127.44,19.6158]
[1720142711723,38.65,127.58,127.43,86.417]
[1720142711918,7.8394,127.57,127.5,7.843]
[1720142712114,100.0,127.58,127.43,86.417]
[1720142712325,100.0,127.56,127.42,15.3774]
[1720142712534,100.0,127.54,127.42,34.9971]
[1720142712709,100.0,127.54,127.42,15.3774]
[1720142712911,7.8438,127.49,127.42,23.2253]
[1720142713212,38.65,127.55,127.42,15.3774]
[1720142713404,7.8415,127.53,127.47,7.8449]
[1720142713607,7.8415,127.53,127.46,7.8455]
[1720142713803,144.7202,127.62,127.42,47.18]
[1720142714031,38.65,127.62,127.54,19.6009]
[1720142714325,15.96899604,127.61,127.54,7.8401]
[1720142714502,7.8372,127.6,127.53,33.8407]
[1720142714703,8.13209604,127.61,127.57,7.8383]
[1720142714915,38.65,127.68,127.58,19.5953]
[1720142715116,132.4568,127.71,127.61,7.836]
[1720142715117,8.12583892,127.67,127.61,7.836]
[1720142715326,8.12583892,127.67,127.58,19.5953]
[1720142715531,7.8338,127.66,127.59,7.8375]
[1720142715705,7.8333,127.67,127.59,7.8372]
[1720142715905,8.11752441,127.69,127.59,7.8372]
[1720142716113,108.11752441,127.69,127.55,19.5995]
[1720142716325,19.5827,127.67,127.55,19.5995]
[1720142716599,19.5827,127.67,127.58,7.8376]
[1720142716600,7.834,127.65,127.58,7.8376]
[1720142716837,38.65,127.67,127.53,443.6772]
[1720142717011,8.11752441,127.69,127.61,7.836]
[1720142717508,8.11752441,127.69,127.53,443.6772]
[1720142717701,8.11752441,127.69,127.53,458.6772]
[1720142717907,158.2212,127.74,127.63,27.4227]
[1720142718109,7.8309,127.7,127.63,27.4227]
[1720142718320,7.8309,127.7,127.64,7.8345]
[1720142718721,8.11769498,127.71,127.61,7.8358]
[1720142718911,8.11769498,127.71,127.57,47.18]
[1720142719242,8.11769498,127.71,127.61,62.6196]
[1720142719444,7.8295,127.73,127.66,7.8328]
[1720142719613,15.94361803,127.75,127.61,452.7196]
[1720142719939,7.8284,127.74,127.68,7.832]
[1720142720318,15.9412811,127.77,127.7,7.8307]
[1720142720520,7.8271,127.77,127.7,7.8307]
[1720142721132,8.21788691,127.79,127.69,27.409]
[1720142721133,7.8272,127.76,127.69,27.409]
[1720142721504,7.8278,127.75,127.69,19.5777]
[1720142721707,100.0,127.77,127.65,7.8333]
[1720142721940,100.0,127.77,127.65,19.5837]
[1720142722244,7.8304,127.71,127.65,19.5837]
[1720142722420,7.8296,127.72,127.65,27.4175]
[1720142723007,7.8304,127.71,127.61,405.5396]
[1720142723209,19.5722,127.74,127.62,19.589]
[1720142723434,7.8296,127.72,127.64,19.5853]
[1720142723614,7.8306,127.71,127.64,19.5853]
[1720142723927,39.1423,127.74,127.61,15.4396]
[1720142724227,100.0,127.72,127.61,15.4396]
[1720142724415,7.8334,127.66,127.61,15.4396]
[1720142724618,19.5796,127.69,127.61,15.4396]
[1720142724818,7.8337,127.66,127.61,15.4396]
[1720142725009,7.8334,127.66,127.61,15.4396]
[1720142725213,19.5796,127.69,127.61,15.4396]
[1720142725427,19.5796,127.69,127.58,19.5953]
[1720142725749,19.5837,127.66,127.56,405.6562]
[1720142725955,7.8346,127.64,127.57,7.8388]
[1720142726154,39.1541,127.71,127.58,19.5952]
[1720142726317,25.8435,127.72,127.61,7.8362]
[1720142726632,7.8339,127.65,127.6,19.5916]
[1720142726840,19.5779,127.7,127.6,19.5916]
[1720142727046,7.8315,127.69,127.63,7.835]
[1720142727246,7.8302,127.72,127.65,7.8334]
[1720142727432,19.5685,127.76,127.64,19.5851]
[1720142727755,58.2185,127.76,127.64,19.5851]
[1720142727956,7.8303,127.71,127.64,27.4195]
[1720142728449,58.2185,127.76,127.61,19.5901]
[1720142728450,19.5722,127.74,127.61,19.5901]
[1720142728627,7.8313,127.7,127.62,7.8356]
[1720142728828,7.8313,127.7,127.63,7.8349]
[1720142729551,19.5751,127.72,127.61,19.5901]
[1720142729752,19.5779,127.7,127.6,390.1]
[1720142729954,7.8338,127.66,127.6,390.1]
[1720142730254,38.65,127.72,127.59,39.1877]
[1720142730454,7.8304,127.71,127.64,7.8344]
[1720142730638,100.0,127.75,127.59,429.2877]
[1720142730954,19.5778,127.7,127.6,7.8368]
[1720142731160,119.5778,127.7,127.59,397.9372]
[1720142731360,19.5778,127.7,127.59,390.1]
[1720142731650,46.4797,127.72,127.64,19.5852]
[1720142731962,38.65,127.72,127.64,19.5852]
[1720142732357,7.8321,127.68,127.62,7.8355]
[1720142732646,38.65,127.72,127.63,7.8351]
[1720142732855,7.8321,127.68,127.62,7.8356]
[1720142733061,38.65,127.72,127.62,7.8356]
[1720142733352,7.8314,127.7,127.63,7.8349]
[1720142734073,7.8334,127.66,127.6,7.8363]
[1720142734232,19.5811,127.68,127.57,7.8387]
[1720142734562,7.8345,127.64,127.58,19.5949]
[1720142734773,58.2253,127.72,127.61,7.8357]
[1720142734945,58.2253,127.72,127.6,27.4284]
[1720142734946,100.0,127.71,127.6,27.4284]
[1720142735147,7.8327,127.67,127.61,7.8361]
[1720142735571,7.8327,127.67,127.6,27.4284]
[1720142735787,58.2253,127.72,127.6,19.5916]
[1720142735964,7.8325,127.68,127.61,7.8363]
[1720142736147,19.5779,127.7,127.58,7.838]
[1720142736349,7.8351,127.64,127.57,27.4345]
[1720142736676,7.8375,127.6,127.56,15.5562]
[1720142736969,19.5873,127.64,127.56,15.5562]
[1720142737172,19.5873,127.64,127.51,21.2381]
[1720142737173,7.8377,127.59,127.51,21.2381]
[1720142737384,100.0,127.64,127.51,21.2381]
[1720142737547,100.0,127.64,127.52,19.6036]
[1720142737747,100.0,127.61,127.51,21.2381]
[1720142737974,7.84,127.55,127.51,21.2381]
[1720142738268,100.0,127.61,127.47,14.0744]
[1720142738269,7.8418,127.53,127.47,14.0744]
[1720142738443,7.8418,127.53,127.47,6.2298]
[1720142738778,100.0,127.56,127.42,574.4424982]
[1720142738979,19.6034,127.53,127.42,396.3298]
[1720142739167,38.65,127.54,127.42,396.3298]
[1720142739476,38.65,127.58,127.42,443.5098]
[1720142739655,7.8391,127.57,127.5,7.843]
[1720142739857,6.1253,127.59,127.49,19.6092]
[1720142740063,7.8392,127.57,127.5,7.8428]
[1720142740450,7.8383,127.58,127.49,19.6092]
[1720142740672,100.0,127.6,127.49,19.6092]
[1720142740856,7.8396,127.56,127.5,7.843]
[1720142741057,100.0,127.6,127.51,19.6053]
[1720142741451,8.10821055,127.59,127.51,27.4476]
[1720142741656,8.10821055,127.59,127.54,19.6013]
[1720142741887,6.2382,127.64,127.54,19.6013]
[1720142742089,7.8359,127.62,127.56,7.8394]
[1720142742292,15.94158773,127.63,127.57,7.8386]
[1720142742588,19.5823,127.67,127.55,7.8399]
[1720142742761,7.8359,127.62,127.55,7.8399]
[1720142743193,15.93802974,127.65,127.57,27.4347]
[1720142743377,7.8348,127.64,127.57,27.4347]
[1720142744085,7.8351,127.63,127.57,27.4347]
[1720142744383,8.10362974,127.65,127.58,7.8381]
[1720142744584,8.10362974,127.65,127.57,19.5965]
[1720142744585,8.10362974,127.65,127.61,7.8358]
[1720142744790,7.8338,127.66,127.59,27.4296]
[1720142744993,7.834,127.65,127.59,27.4296]
[1720142745277,7.8351,127.63,127.56,19.5978]
[1720142745589,7.8345,127.64,127.57,7.8383]
[1720142745877,8.10516492,127.68,127.52,476.489]
[1720142746059,8.10516492,127.68,127.59,19.5928]
[1720142746060,7.8336,127.66,127.59,19.5928]
[1720142746457,7.8327,127.67,127.59,19.5928]
[1720142746854,7.8321,127.68,127.62,7.8357]
[1720142747054,8.10029972,127.69,127.61,19.5901]
[1720142747587,15.93219972,127.69,127.62,7.8356]
[1720142747766,7.8322,127.68,127.62,7.8356]
[1720142748483,8.10029972,127.69,127.63,7.8349]
[1720142748662,19.5729,127.73,127.63,7.8349]
[1720142748862,8.09875239,127.72,127.63,7.8349]
[1720142749058,7.8309,127.7,127.63,7.8349]
[1720142749466,8.09875239,127.72,127.65,7.8337]
[1720142749467,15.92885239,127.72,127.65,7.8337]
[1720142749682,7.8307,127.71,127.64,27.4198]
[1720142749881,7.8307,127.71,127.6,412.4473]
[1720142749882,7.8322,127.68,127.61,19.5901]
[1720142750269,27.67355239,127.72,127.61,19.5901]
[1720142750476,27.67355239,127.72,127.63,7.8346]
[1720142750688,8.09875239,127.72,127.6,459.6273]
[1720142750891,8.09875239,127.72,127.66,7.8328]
[1720142751187,6.2374,127.74,127.64,7.8339]
[1720142751374,6.2374,127.74,127.62,19.5886]
[1720142751375,7.8315,127.69,127.62,19.5886]
[1720142751574,7.8309,127.7,127.63,7.8345]
[1720142751769,7.8303,127.71,127.64,7.8343]
[1720142751971,7.8303,127.71,127.6,459.6273]
[1720142752184,7.8303,127.71,127.65,7.8338]
[1720142752385,14.34596266,127.74,127.64,27.4197]
[1720142752570,7.8303,127.71,127.65,7.8337]
[1720142753323,33.91756266,127.74,127.68,7.8318]
[1720142753324,15.93706266,127.74,127.68,7.8318]
[1720142753591,6.4268,127.78,127.7,7.8308]
[1720142753892,6.4268,127.78,127.68,19.5793]
[1720142753893,14.53162413,127.78,127.68,19.5793]
[1720142754092,7.8272,127.76,127.68,19.5793]
[1720142754299,7.8272,127.76,127.7,7.8306]
[1720142754589,14.53162413,127.78,127.73,7.8285]
[1720142754590,8.10482413,127.78,127.73,7.8285]
[1720142754796,0.1,127.79,127.72,47.18]
[1720142755089,0.1,127.79,127.77,7.8264]
[1720142755290,0.1,127.79,127.78,7.8259]
[1720142756170,0.8318991,127.83,127.8,7.8245]
[1720142756382,0.8318991,127.83,127.78,19.564]
[1720142756586,0.8318991,127.83,127.79,7.825]
[1720142756969,7.8248,127.8,127.74,19.5701]
[1720142757174,0.8318991,127.83,127.76,7.827]
[1720142757404,7.8252,127.8,127.72,390.1]
[1720142757607,7.824,127.82,127.72,390.1]
[1720142757824,0.8318991,127.83,127.73,19.5712]
[1720142758182,7.8245,127.81,127.74,7.8278]
[1720142759103,0.8318991,127.83,127.75,19.5686]
[1720142759307,0.8318991,127.83,127.77,7.8264]
[1720142759511,7.8235,127.82,127.76,7.827]
[1720142759670,0.8318991,127.83,127.79,19.5623]
[1720142759876,0.8318991,127.83,127.76,7.8271]
[1720142759877,8.6552991,127.83,127.76,7.8271]
[1720142760190,0.8318991,127.83,127.72,7.829]
[1720142760510,7.8278,127.75,127.7,402.80872975]
[1720142760709,0.8318991,127.83,127.7,12.70872975]
[1720142760872,7.8259,127.79,127.7,12.70872975]
[1720142761070,0.8318991,127.83,127.71,19.5746]
[1720142761287,7.8271,127.77,127.69,23.1489]
[1720142761478,7.8271,127.77,127.69,15.3181]
[1720142761681,19.5595,127.82,127.7,19.5756]
[1720142761879,100.8318991,127.83,127.74,7.8283]
[1720142761880,7.825,127.8,127.74,7.8283]
[1720142762101,0.8318991,127.83,127.69,15.3181]
[1720142762301,0.8318991,127.83,127.74,19.57]
[1720142762510,7.8248,127.8,127.69,405.4181]
[1720142762798,0.8318991,127.83,127.7,47.35]
[1720142763005,0.8318991,127.83,127.71,106.3307]
[1720142763315,0.8318991,127.83,127.79,7.8248]
[1720142763509,0.8318991,127.83,127.74,53.8037]
[1720142763710,0.8318991,127.83,127.79,7.8248]
[1720142764485,0.8318991,127.83,127.81,7.8239]
[1720142764705,0.8318991,127.83,127.8,27.3854]
[1720142765103,0.8318991,127.83,127.8,19.5607]
[1720142765423,0.8318991,127.83,127.8,27.3851]
[1720142765597,0.8318991,127.83,127.8,19.5607]
[1720142765928,0.8318991,127.83,127.78,7.8258]
[1720142766224,0.8318991,127.83,127.77,19.5662]
[1720142766926,0.8318991,127.83,127.79,7.8251]
[1720142767101,7.8274,127.76,127.69,439.4639]
[1720142767437,7.826,127.78,127.72,7.8294]
[1720142767642,139.9492991,127.83,127.71,19.5747]
[1720142767937,0.8318991,127.83,127.73,19.5716]
[1720142768144,0.8318991,127.83,127.7,47.18]
[1720142768298,0.8318991,127.83,127.77,7.8261]
[1720142768497,0.8318991,127.83,127.7,437.28]
[1720142768739,0.8318991,127.83,127.81,7.8239]
[1720142768901,0.8318991,127.83,127.8,19.5606]
[1720142769317,0.8318991,127.83,127.82,7.8235]
[1720142770235,0.1,127.89,127.88,7.8198]
[1720142771530,8.21025431,127.97,127.92,7.8169]
[1720142771846,0.1,127.99,127.88,19.5495]
[1720142772040,7.8144,127.97,127.9,7.8183]
[1720142772206,0.1,127.99,127.87,390.1]
[1720142772409,19.5359,127.97,127.87,390.1]
[1720142772725,0.1,127.99,127.87,390.1]
[1720142772938,7.8146,127.97,127.9,7.8181]
[1720142773114,0.1,127.99,127.93,7.8162]
[1720142773332,0.1,127.99,127.92,19.543]
[1720142773513,0.1,127.99,127.93,7.8161]
[1720142773708,0.1,127.99,127.94,7.816]
[1720142773914,0.1,127.99,127.93,7.8162]
[1720142774437,7.9133,127.99,127.93,7.8162]
[1720142775012,0.1,127.99,127.88,35.0469]
[1720142775298,7.8186,127.9,127.87,390.1]
[1720142775544,38.65,127.97,127.83,16.4444]
[1720142775545,19.5413,127.94,127.83,16.4444]
[1720142775707,19.5444,127.92,127.81,19.5599]
[1720142775902,7.8191,127.9,127.83,7.8224]
[1720142776113,119.5444,127.92,127.83,7.8224]
[1720142776317,7.8207,127.87,127.81,27.3834]
[1720142776607,138.65,127.89,127.78,587.7767982]
[1720142776806,7.8231,127.83,127.78,390.1]
[1720142777119,7.8222,127.85,127.77,7.8262]
[1720142777308,6.4047,127.86,127.75,39.1378]
[1720142777509,7.8223,127.84,127.78,7.8255]
[1720142777916,7.8217,127.85,127.78,7.8255]
[1720142778101,7.8225,127.84,127.78,7.8255]
[1720142778642,7.8217,127.85,127.78,7.8255]
[1720142778810,6.4047,127.86,127.75,39.1378]
[1720142779009,46.4697,127.89,127.82,7.8232]
[1720142779325,6.1807,127.9,127.75,429.2378]
[1720142779526,6.1807,127.9,127.79,19.5618]
[1720142779732,7.8195,127.89,127.82,7.8234]
[1720142780031,7.8199,127.88,127.81,27.3824]
[1720142780235,6.1807,127.9,127.82,7.8231]
[1720142780445,7.8174,127.92,127.8,6.2098]
[1720142780609,7.8184,127.91,127.8,6.2098]
[1720142780804,6.5878,127.94,127.85,19.5532]
[1720142780805,14.4045,127.94,127.85,19.5532]
[1720142781018,6.5878,127.94,127.88,7.8196]
[1720142781308,6.5878,127.94,127.87,19.5499]
[1720142781629,6.5878,127.94,127.89,7.8192]
[1720142781818,7.816,127.95,127.89,7.8192]
[1720142782019,0.8318991,127.96,127.9,7.8184]
[1720142782236,0.8318991,127.96,127.91,7.8178]
[1720142782833,7.8157,127.95,127.89,19.547]
[1720142783016,0.8318991,127.96,127.89,27.3657]
[1720142783360,7.8156,127.95,127.89,19.547]
[1720142783537,7.8162,127.94,127.89,19.547]
[1720142783744,0.8318991,127.96,127.89,7.8191]
[1720142783942,8.6471991,127.96,127.83,437.28]
[1720142784119,8.6471991,127.96,127.9,7.8185]
[1720142784314,0.8318991,127.96,127.92,7.8173]
[1720142784518,0.8318991,127.96,127.94,7.8161]
[1720142784932,0.8318991,127.96,127.93,27.3576]
[1720142785451,0.8318991,127.96,127.91,7.8173]
[1720142785920,0.8318991,127.96,127.92,7.817]
[1720142786242,0.8318991,127.96,127.93,7.8167]
[1720142786737,0.8318991,127.96,127.95,7.8155]
[1720142786944,0.8318991,127.96,127.93,7.8164]
[1720142787148,0.8318991,127.96,127.94,7.816]
[1720142787640,0.8318991,127.96,127.93,7.8167]
[1720142787946,0.8318991,127.96,127.9,390.1]
[1720142788145,0.8318991,127.96,127.92,7.8168]
[1720142789143,0.8318991,127.96,127.9,417.4631]
[1720142789314,0.8318991,127.96,127.85,45.6819]
[1720142789521,0.8318991,127.96,127.82,15.9866]
[1720142789522,7.8168,127.93,127.82,406.0866]
[1720142789719,0.8318991,127.96,127.89,7.8186]
[1720142789920,8.6471991,127.96,127.9,7.8183]
[1720142790124,0.8318991,127.96,127.91,7.8177]
[1720142790330,0.8318991,127.96,127.9,19.5458]
[1720142790549,0.8318991,127.96,127.92,7.8172]
[1720142790719,0.8318991,127.96,127.92,19.5425]
[1720142791458,0.8318991,127.96,127.95,7.8155]
[1720142792057,0.8318991,127.96,127.94,19.5392]
[1720142792351,0.8318991,127.96,127.88,390.1]
[1720142792530,8.6468991,127.96,127.9,7.8181]
[1720142792716,0.8318991,127.96,127.88,390.1]
[1720142793049,0.8318991,127.96,127.95,7.8155]
[1720142793552,0.8318991,127.96,127.93,27.3579]
[1720142793850,0.8318991,127.96,127.94,7.8158]
[1720142794431,0.8318991,127.96,127.9,19.5459]
[1720142794752,0.8318991,127.96,127.92,7.8172]
[1720142794946,0.8318991,127.96,127.9,7.818]
[1720142795121,7.816,127.95,127.89,27.3665]
[1720142795318,0.8318991,127.96,127.9,7.8184]
[1720142795628,0.8318991,127.96,127.89,19.5473]
[1720142795832,8.6472991,127.96,127.89,27.3659]
[1720142796032,7.8158,127.95,127.89,19.5473]
[1720142796549,0.8318991,127.96,127.89,19.5473]
[1720142796723,8.6471991,127.96,127.89,27.366]
[1720142796918,0.8318991,127.96,127.89,19.5473]
[1720142797140,0.8318991,127.96,127.92,7.8172]
[1720142797748,0.8318991,127.96,127.91,27.362]
[1720142798274,0.8318991,127.96,127.91,27.3621]
[1720142798423,0.8318991,127.96,127.84,390.1]
[1720142798630,7.8175,127.92,127.86,7.821]
[1720142799127,7.8178,127.92,127.86,7.821]
[1720142799332,6.4058,127.95,127.87,19.5504]
[1720142799525,6.4058,127.95,127.84,429.2109]
[1720142799852,7.8168,127.93,127.87,7.8202]
[1720142800044,7.8161,127.94,127.88,7.8196]
[1720142800424,7.8161,127.94,127.86,19.5517]
[1720142800425,6.4058,127.95,127.84,476.3909]
[1720142800627,7.8161,127.94,127.88,7.8196]
[1720142801022,6.4058,127.95,127.89,7.8188]
[1720142801222,14.2215,127.95,127.89,7.8188]
[1720142801535,7.8163,127.94,127.88,7.8197]
[1720142802056,6.4058,127.95,127.84,409.6547]
[1720142802220,7.8199,127.88,127.84,390.1]
[1720142802422,7.8199,127.88,127.82,7.823]
[1720142802631,7.8205,127.87,127.81,27.3838]
[1720142802848,119.5441,127.92,127.81,19.5599]
[1720142803044,158.1941,127.92,127.81,19.5599]
[1720142803544,158.1941,127.92,127.76,63.0126]
[1720142803545,139.8846,127.9,127.78,19.5638]
[1720142803923,100.0,127.86,127.75,19.5686]
[1720142804225,7.8243,127.81,127.75,27.3958]
[1720142804424,138.65,127.88,127.78,19.5648]
[1720142804740,7.8222,127.85,127.78,27.3906]
[1720142804950,138.65,127.88,127.78,27.3906]
[1720142804951,7.8224,127.84,127.78,27.3906]
[1720142805319,38.65,127.88,127.78,19.5648]
[1720142805540,39.8844,127.9,127.8,19.5605]
[1720142805721,7.8207,127.87,127.8,27.3851]
[1720142806054,7.8228,127.84,127.77,27.3922]
[1720142806224,100.0,127.87,127.77,19.5658]
[1720142806426,7.8236,127.82,127.76,7.827]
[1720142806642,100.0,127.87,127.77,7.8264]
[1720142806841,7.8233,127.83,127.76,7.827]
[1720142807046,19.5541,127.85,127.74,27.398]
[1720142807347,19.5541,127.85,127.74,19.5701]
[1720142807533,100.0,127.87,127.74,19.5701]